[Event "Titled Tuesday Blitz February 15 Early 2022"]
[White "Jones, Gawain C B"]
[Black "Osmak, Yuliia"]
[WhiteFideId "409561"]
[BlackFideId "14101602"]
[WhiteElo "2657"]
[BlackElo "2302"]
[Result "1-0"]
[Round "02"]
[TimeControl "180+1"]
[Date "2022.02.15"]
[WhiteClock "0:00:08"]
[BlackClock "0:00:01"]

1. Nf3 {[%clk 0:03:00]}  d5 {[%clk 0:02:57]} 2. g3 {[%clk 0:03:00]}  Nd7 {[%clk 0:02:56]} 3. d4 {[%clk 0:02:55]}  Nb6 {[%clk 0:02:53]} 4. Bg2 {[%clk 0:02:55]}  Nf6 {[%clk 0:02:52]} 5. O-O {[%clk 0:02:54]}  Bf5 {[%clk 0:02:51]} 6. a4 {[%clk 0:02:54]}  a5 {[%clk 0:02:51]} 7. Ne5 {[%clk 0:02:50]}  c6 {[%clk 0:02:46]} 8. b3 {[%clk 0:02:40]}  e6 {[%clk 0:02:45]} 9. c4 {[%clk 0:02:40]}  Bb4 {[%clk 0:02:39]} 10. c5 {[%clk 0:02:38]}  Nbd7 {[%clk 0:02:37]} 11. Nd3 {[%clk 0:02:38]}  Bxd3 {[%clk 0:02:28]} 12. Qxd3 {[%clk 0:02:38]}  e5 {[%clk 0:02:23]} 13. e3 {[%clk 0:02:28]}  O-O {[%clk 0:02:18]} 14. Nc3 {[%clk 0:02:28]}  Re8 {[%clk 0:02:11]} 15. Na2 {[%clk 0:02:26]}  exd4 {[%clk 0:01:53]} 16. exd4 {[%clk 0:02:26]}  Ne4 {[%clk 0:01:52]} 17. Nxb4 {[%clk 0:02:24]}  axb4 {[%clk 0:01:53]} 18. Re1 {[%clk 0:02:14]}  Qf6 {[%clk 0:01:25]} 19. Be3 {[%clk 0:01:50]}  Qg6 {[%clk 0:01:14]} 20. f3 {[%clk 0:01:44]}  Nc3 {[%clk 0:01:10]} 21. Qxg6 {[%clk 0:01:44]}  hxg6 {[%clk 0:01:11]} 22. Kf2 {[%clk 0:01:42]}  f5 {[%clk 0:00:55]} 23. Bf1 {[%clk 0:01:36]}  Kf7 {[%clk 0:00:54]} 24. Bd2 {[%clk 0:01:28]}  Rh8 {[%clk 0:00:44]} 25. h4 {[%clk 0:01:26]}  Nf8 {[%clk 0:00:27]} 26. Bf4 {[%clk 0:00:59]}  Ne6 {[%clk 0:00:24]} 27. Be5 {[%clk 0:01:00]}  g5 {[%clk 0:00:18]} 28. Bd3 {[%clk 0:00:52]}  gxh4 {[%clk 0:00:15]} 29. Bxf5 {[%clk 0:00:52]}  hxg3+ {[%clk 0:00:15]} 30. Kxg3 {[%clk 0:00:52]}  Rh6 {[%clk 0:00:14]} 31. Kf2 {[%clk 0:00:30]}  Rah8 {[%clk 0:00:13]} 32. Rg1 {[%clk 0:00:30]}  Rg8 {[%clk 0:00:06]} 33. Rh1 {[%clk 0:00:27]}  Rgh8 {[%clk 0:00:04]} 34. Rxh6 {[%clk 0:00:25]}  Rxh6 {[%clk 0:00:05]} 35. Rg1 {[%clk 0:00:24]}  g6 {[%clk 0:00:06]} 36. Bg4 {[%clk 0:00:20]}  Rh7 {[%clk 0:00:05]} 37. Bxe6+ {[%clk 0:00:20]}  Kxe6 {[%clk 0:00:06]} 38. Rxg6+ {[%clk 0:00:20]}  Kd7 {[%clk 0:00:06]} 39. Rg8 {[%clk 0:00:18]}  Rf7 {[%clk 0:00:05]} 40. Rb8 {[%clk 0:00:13]}  Ke6 {[%clk 0:00:06]} 41. Re8+ {[%clk 0:00:10]}  Kd7 {[%clk 0:00:05]} 42. Rb8 {[%clk 0:00:10]}  Ke6 {[%clk 0:00:05]} 43. a5 {[%clk 0:00:10]}  Ne4+ {[%clk 0:00:05]} 44. Ke3 {[%clk 0:00:11]}  Ng5 {[%clk 0:00:05]} 45. Bf4 {[%clk 0:00:11]}  Nh3 {[%clk 0:00:04]} 46. Be5 {[%clk 0:00:07]}  Ng5 {[%clk 0:00:04]} 47. f4 {[%clk 0:00:08]}  Ne4 {[%clk 0:00:04]} 48. Rc8 {[%clk 0:00:07]}  Ng3 {[%clk 0:00:03]} 49. a6 {[%clk 0:00:07]}  Nf5+ {[%clk 0:00:03]} 50. Kd3 {[%clk 0:00:07]}  bxa6 {[%clk 0:00:03]} 51. Rxc6+ {[%clk 0:00:07]}  Kd7 {[%clk 0:00:04]} 52. Rxa6 {[%clk 0:00:08]}  Rf8 {[%clk 0:00:03]} 53. c6+ {[%clk 0:00:07]}  Ke6 {[%clk 0:00:03]} 54. Rb6 {[%clk 0:00:07]}  Rc8 {[%clk 0:00:02]} 55. c7+ {[%clk 0:00:07]}  Kd7 {[%clk 0:00:02]} 56. Rxb4 {[%clk 0:00:08]}  Ne7 {[%clk 0:00:01]} 57. Rb8 {[%clk 0:00:08]} 1-0


[Site "https://www.chess.com"]

[Event "Titled Tuesday Blitz February 15 Early 2022"]
[White "Jumabayev, Rinat"]
[Black "Kabanov, Nikolai"]
[WhiteFideId "13702661"]
[BlackFideId "4127820"]
[WhiteElo "2561"]
[BlackElo "2304"]
[Result "1-0"]
[Round "02"]
[TimeControl "180+1"]
[Date "2022.02.15"]
[WhiteClock "0:00:37"]
[BlackClock "0:00:07"]

1. Nf3 {[%clk 0:03:00]}  Nf6 {[%clk 0:02:58]} 2. c4 {[%clk 0:03:01]}  g6 {[%clk 0:02:58]} 3. Nc3 {[%clk 0:03:01]}  Bg7 {[%clk 0:02:58]} 4. e4 {[%clk 0:03:02]}  O-O {[%clk 0:02:57]} 5. Be2 {[%clk 0:03:02]}  d6 {[%clk 0:02:52]} 6. d4 {[%clk 0:03:02]}  e5 {[%clk 0:02:50]} 7. O-O {[%clk 0:03:03]}  Na6 {[%clk 0:02:45]} 8. Be3 {[%clk 0:03:01]}  Ng4 {[%clk 0:02:43]} 9. Bg5 {[%clk 0:03:01]}  f6 {[%clk 0:02:41]} 10. Bc1 {[%clk 0:03:01]}  Nh6 {[%clk 0:02:38]} 11. dxe5 {[%clk 0:02:55]}  dxe5 {[%clk 0:02:31]} 12. h3 {[%clk 0:02:55]}  c6 {[%clk 0:02:25]} 13. Qc2 {[%clk 0:02:53]}  Qe7 {[%clk 0:02:24]} 14. a3 {[%clk 0:02:45]}  Nc5 {[%clk 0:02:19]} 15. Be3 {[%clk 0:02:44]}  Ne6 {[%clk 0:02:13]} 16. c5 {[%clk 0:02:42]}  f5 {[%clk 0:02:05]} 17. exf5 {[%clk 0:01:55]}  Nxf5 {[%clk 0:02:04]} 18. Ne4 {[%clk 0:01:56]}  Ned4 {[%clk 0:01:47]} 19. Nxd4 {[%clk 0:01:47]}  Nxd4 {[%clk 0:01:41]} 20. Bc4+ {[%clk 0:01:21]}  Kh8 {[%clk 0:01:36]} 21. Qd1 {[%clk 0:01:19]}  Bf5 {[%clk 0:01:14]} 22. Bg5 {[%clk 0:01:16]}  Qc7 {[%clk 0:01:01]} 23. Nd6 {[%clk 0:01:15]}  b6 {[%clk 0:00:48]} 24. b4 {[%clk 0:01:12]}  bxc5 {[%clk 0:00:30]} 25. bxc5 {[%clk 0:01:13]}  Rab8 {[%clk 0:00:27]} 26. Be3 {[%clk 0:01:04]}  h6 {[%clk 0:00:17]} 27. Ra2 {[%clk 0:00:57]}  Qa5 {[%clk 0:00:14]} 28. Nf7+ {[%clk 0:00:44]}  Kh7 {[%clk 0:00:13]} 29. Nxe5 {[%clk 0:00:44]}  Bxe5 {[%clk 0:00:12]} 30. Bxd4 {[%clk 0:00:44]}  Rbd8 {[%clk 0:00:11]} 31. Rd2 {[%clk 0:00:42]}  Bf4 {[%clk 0:00:07]} 32. Qe2 {[%clk 0:00:37]} 1-0


[Site "https://www.chess.com"]

[Event "Titled Tuesday Blitz February 15 Early 2022"]
[White "Kett, Tim"]
[Black "Manukyan, Artyom"]
[WhiteFideId "1801210"]
[BlackFideId "13305786"]
[WhiteElo "2098"]
[BlackElo "2034"]
[Result "0-1"]
[Round "02"]
[TimeControl "180+1"]
[Date "2022.02.15"]
[WhiteClock "0:00:12"]
[BlackClock "0:00:44"]

1. e4 {[%clk 0:02:55]}  e6 {[%clk 0:02:59]} 2. d4 {[%clk 0:02:54]}  d5 {[%clk 0:03:00]} 3. e5 {[%clk 0:02:54]}  c5 {[%clk 0:02:59]} 4. c3 {[%clk 0:02:54]}  Qb6 {[%clk 0:02:59]} 5. Nf3 {[%clk 0:02:53]}  Bd7 {[%clk 0:03:00]} 6. h4 {[%clk 0:02:42]}  Bb5 {[%clk 0:02:59]} 7. h5 {[%clk 0:02:41]}  Bxf1 {[%clk 0:02:57]} 8. Kxf1 {[%clk 0:02:41]}  h6 {[%clk 0:02:58]} 9. g3 {[%clk 0:02:28]}  Nc6 {[%clk 0:02:58]} 10. Kg2 {[%clk 0:02:26]}  Nge7 {[%clk 0:02:58]} 11. Na3 {[%clk 0:02:15]}  Nf5 {[%clk 0:02:56]} 12. Nc2 {[%clk 0:02:15]}  Rc8 {[%clk 0:02:48]} 13. g4 {[%clk 0:02:13]}  Nfe7 {[%clk 0:02:46]} 14. Rb1 {[%clk 0:02:03]}  cxd4 {[%clk 0:02:43]} 15. cxd4 {[%clk 0:01:53]}  Nb8 {[%clk 0:02:43]} 16. Bd2 {[%clk 0:01:46]}  Nec6 {[%clk 0:02:31]} 17. Bc3 {[%clk 0:01:38]}  Be7 {[%clk 0:02:31]} 18. Ne3 {[%clk 0:01:37]}  Nd7 {[%clk 0:02:30]} 19. Qd3 {[%clk 0:01:33]}  Qa6 {[%clk 0:02:25]} 20. Qxa6 {[%clk 0:01:26]}  bxa6 {[%clk 0:02:26]} 21. Kg3 {[%clk 0:01:16]}  O-O {[%clk 0:02:22]} 22. Ne1 {[%clk 0:01:13]}  Bd8 {[%clk 0:02:16]} 23. f4 {[%clk 0:01:11]}  Bb6 {[%clk 0:02:14]} 24. Nf3 {[%clk 0:01:10]}  f6 {[%clk 0:02:11]} 25. Rbe1 {[%clk 0:00:54]}  fxe5 {[%clk 0:02:11]} 26. fxe5 {[%clk 0:00:48]}  Ndxe5 {[%clk 0:01:41]} 27. Nxe5 {[%clk 0:00:42]}  Nxe5 {[%clk 0:01:41]} 28. dxe5 {[%clk 0:00:42]}  d4 {[%clk 0:01:42]} 29. Bb4 {[%clk 0:00:39]}  dxe3 {[%clk 0:01:36]} 30. Bxf8 {[%clk 0:00:38]}  Rxf8 {[%clk 0:01:36]} 31. Rhf1 {[%clk 0:00:37]}  Rc8 {[%clk 0:01:34]} 32. Rc1 {[%clk 0:00:36]}  Rd8 {[%clk 0:01:33]} 33. Rfd1 {[%clk 0:00:35]}  Rf8 {[%clk 0:01:30]} 34. Rf1 {[%clk 0:00:34]}  Rd8 {[%clk 0:01:29]} 35. Rfd1 {[%clk 0:00:34]}  Rb8 {[%clk 0:01:28]} 36. Rd7 {[%clk 0:00:30]}  Rf8 {[%clk 0:01:24]} 37. Re7 {[%clk 0:00:23]}  e2 {[%clk 0:01:19]} 38. Rxe6 {[%clk 0:00:17]}  Rf1 {[%clk 0:00:52]} 39. Rc8+ {[%clk 0:00:12]}  Kf7 {[%clk 0:00:44]} 0-1


[Site "https://www.chess.com"]

[Event "Titled Tuesday Blitz February 15 Early 2022"]
[White "Komissarov, Alexey"]
[Black "Karabalis, Harilos"]
[WhiteFideId "4176545"]
[BlackFideId "4621808"]
[WhiteElo "2216"]
[BlackElo "2168"]
[Result "0-1"]
[Round "02"]
[TimeControl "180+1"]
[Date "2022.02.15"]
[WhiteClock "0:00:37"]
[BlackClock "0:01:51"]

1. e4 {[%clk 0:02:52]}  e6 {[%clk 0:02:57]} 2. d4 {[%clk 0:02:51]}  d5 {[%clk 0:02:57]} 3. Nc3 {[%clk 0:02:49]}  Bb4 {[%clk 0:02:55]} 4. a3 {[%clk 0:02:46]}  Bxc3+ {[%clk 0:02:54]} 5. bxc3 {[%clk 0:02:47]}  dxe4 {[%clk 0:02:49]} 6. f3 {[%clk 0:02:42]}  c5 {[%clk 0:02:42]} 7. Bb2 {[%clk 0:02:37]}  Nc6 {[%clk 0:02:41]} 8. Qd2 {[%clk 0:02:32]}  Nf6 {[%clk 0:02:37]} 9. O-O-O {[%clk 0:02:26]}  a6 {[%clk 0:02:20]} 10. fxe4 {[%clk 0:02:11]}  Nxe4 {[%clk 0:02:20]} 11. Qe3 {[%clk 0:02:08]}  Qg5 {[%clk 0:02:14]} 12. Qxg5 {[%clk 0:02:04]}  Nxg5 {[%clk 0:02:14]} 13. dxc5 {[%clk 0:02:04]}  Ne4 {[%clk 0:02:14]} 14. c4 {[%clk 0:02:00]}  Nf2 {[%clk 0:02:09]} 15. Bxg7 {[%clk 0:00:41]}  Rg8 {[%clk 0:02:04]} 16. Bf6 {[%clk 0:00:37]}  Nxh1 {[%clk 0:01:51]} 0-1


[Site "https://www.chess.com"]

[Event "Titled Tuesday Blitz February 15 Early 2022"]
[White "Korchmar, Vasiliy"]
[Black "Xiong, Jeffery"]
[WhiteFideId "24131750"]
[BlackFideId "2047640"]
[WhiteElo "2370"]
[BlackElo "2727"]
[Result "0-1"]
[Round "02"]
[TimeControl "180+1"]
[Date "2022.02.15"]
[WhiteClock "0:00:01"]
[BlackClock "0:00:15"]

1. d4 {[%clk 0:03:00]}  d6 {[%clk 0:02:59]} 2. e4 {[%clk 0:03:00]}  Nf6 {[%clk 0:02:58]} 3. Nc3 {[%clk 0:02:59]}  e5 {[%clk 0:02:56]} 4. Nf3 {[%clk 0:02:59]}  exd4 {[%clk 0:02:56]} 5. Nxd4 {[%clk 0:02:59]}  Be7 {[%clk 0:02:57]} 6. g3 {[%clk 0:02:58]}  d5 {[%clk 0:02:51]} 7. e5 {[%clk 0:02:56]}  Ng4 {[%clk 0:02:49]} 8. e6 {[%clk 0:02:52]}  Nf6 {[%clk 0:02:44]} 9. exf7+ {[%clk 0:02:52]}  Kxf7 {[%clk 0:02:45]} 10. Bg2 {[%clk 0:02:50]}  Re8 {[%clk 0:02:37]} 11. O-O {[%clk 0:02:50]}  c6 {[%clk 0:02:38]} 12. Re1 {[%clk 0:02:44]}  Na6 {[%clk 0:02:33]} 13. f4 {[%clk 0:02:28]}  Nc7 {[%clk 0:02:29]} 14. h3 {[%clk 0:02:13]}  Kg8 {[%clk 0:02:29]} 15. g4 {[%clk 0:02:10]}  Bc5 {[%clk 0:02:26]} 16. Be3 {[%clk 0:01:56]}  Bd7 {[%clk 0:01:47]} 17. g5 {[%clk 0:01:49]}  Nh5 {[%clk 0:01:42]} 18. Kh1 {[%clk 0:00:56]}  Rxe3 {[%clk 0:00:48]} 19. Rxe3 {[%clk 0:00:52]}  Nxf4 {[%clk 0:00:48]} 20. Rg3 {[%clk 0:00:44]}  Bd6 {[%clk 0:00:38]} 21. Qd2 {[%clk 0:00:29]}  Nxg2 {[%clk 0:00:35]} 22. Rxg2 {[%clk 0:00:28]}  Bxh3 {[%clk 0:00:36]} 23. Rf2 {[%clk 0:00:22]}  Qd7 {[%clk 0:00:36]} 24. Rg1 {[%clk 0:00:16]}  Re8 {[%clk 0:00:34]} 25. Qd3 {[%clk 0:00:13]}  g6 {[%clk 0:00:22]} 26. Nce2 {[%clk 0:00:09]}  c5 {[%clk 0:00:21]} 27. Nf3 {[%clk 0:00:02]}  Bf5 {[%clk 0:00:21]} 28. Qb3 {[%clk 0:00:01]}  Be4 {[%clk 0:00:22]} 29. Ng3 {[%clk 0:00:01]}  Bxg3 {[%clk 0:00:15]} 0-1


[Site "https://www.chess.com"]

[Event "Titled Tuesday Blitz February 15 Early 2022"]
[White "Kouskoutis, Georgios-Alexandros"]
[Black "Boraso, Alessio"]
[WhiteFideId "4234049"]
[BlackFideId "848077"]
[WhiteElo "2130"]
[BlackElo "2277"]
[Result "0-1"]
[Round "02"]
[TimeControl "180+1"]
[Date "2022.02.15"]
[WhiteClock "0:00:02"]
[BlackClock "0:00:08"]

1. c4 {[%clk 0:02:38]}  c5 {[%clk 0:02:54]} 2. g3 {[%clk 0:02:39]}  g6 {[%clk 0:02:54]} 3. Bg2 {[%clk 0:02:39]}  Bg7 {[%clk 0:02:55]} 4. Nc3 {[%clk 0:02:40]}  Nc6 {[%clk 0:02:55]} 5. e4 {[%clk 0:02:41]}  h5 {[%clk 0:02:52]} 6. h3 {[%clk 0:02:39]}  d6 {[%clk 0:02:49]} 7. Nge2 {[%clk 0:02:39]}  Nf6 {[%clk 0:02:41]} 8. O-O {[%clk 0:02:37]}  Be6 {[%clk 0:02:24]} 9. d3 {[%clk 0:02:13]}  Qd7 {[%clk 0:02:23]} 10. Nf4 {[%clk 0:02:03]}  Nd4 {[%clk 0:02:16]} 11. Be3 {[%clk 0:01:42]}  g5 {[%clk 0:02:06]} 12. Nxe6 {[%clk 0:01:35]}  Nxe6 {[%clk 0:02:05]} 13. f4 {[%clk 0:01:27]}  gxf4 {[%clk 0:01:56]} 14. gxf4 {[%clk 0:01:28]}  h4 {[%clk 0:01:40]} 15. Kh2 {[%clk 0:01:12]}  Nh5 {[%clk 0:01:35]} 16. Qg4 {[%clk 0:01:04]}  O-O-O {[%clk 0:01:21]} 17. Nd5 {[%clk 0:00:39]}  Rdg8 {[%clk 0:01:18]} 18. Qf5 {[%clk 0:00:14]}  Bf6 {[%clk 0:00:28]} 19. Nxf6 {[%clk 0:00:07]}  exf6 {[%clk 0:00:28]} 20. Rf2 {[%clk 0:00:05]}  Ng3 {[%clk 0:00:16]} 21. Qxf6 {[%clk 0:00:04]}  Rh7 {[%clk 0:00:09]} 22. f5 {[%clk 0:00:02]}  Nd8 {[%clk 0:00:04]} 23. b4 {[%clk 0:00:03]}  cxb4 {[%clk 0:00:04]} 24. Rb1 {[%clk 0:00:02]}  Nc6 {[%clk 0:00:05]} 25. d4 {[%clk 0:00:02]}  b3 {[%clk 0:00:05]} 26. d5 {[%clk 0:00:02]}  Rhg7 {[%clk 0:00:06]} 27. dxc6 {[%clk 0:00:02]}  Qxc6 {[%clk 0:00:06]} 28. axb3 {[%clk 0:00:01]}  Nxe4 {[%clk 0:00:07]} 29. Bxe4 {[%clk 0:00:02]}  Qxe4 {[%clk 0:00:08]} 30. Qd4 {[%clk 0:00:02]}  Rg2+ {[%clk 0:00:07]} 31. Kh1 {[%clk 0:00:03]}  Rg1+ {[%clk 0:00:07]} 32. Kh2 {[%clk 0:00:02]}  R8g2+ {[%clk 0:00:07]} 33. Rxg2 {[%clk 0:00:02]}  Qxg2# {[%clk 0:00:08]} 0-1


[Site "https://www.chess.com"]

[Event "Titled Tuesday Blitz February 15 Early 2022"]
[White "Kretov, Evgenij"]
[Black "Deac, Bogdan-Daniel"]
[WhiteFideId "4167821"]
[BlackFideId "1226380"]
[WhiteElo "2303"]
[BlackElo "2646"]
[Result "0-1"]
[Round "02"]
[TimeControl "180+1"]
[Date "2022.02.15"]
[WhiteClock "0:00:09"]
[BlackClock "0:00:04"]

1. d4 {[%clk 0:03:00]}  Nf6 {[%clk 0:02:59]} 2. c4 {[%clk 0:03:01]}  e6 {[%clk 0:02:59]} 3. Nc3 {[%clk 0:03:01]}  Bb4 {[%clk 0:02:59]} 4. Bg5 {[%clk 0:03:01]}  c5 {[%clk 0:02:55]} 5. d5 {[%clk 0:03:01]}  exd5 {[%clk 0:02:55]} 6. cxd5 {[%clk 0:03:02]}  d6 {[%clk 0:02:55]} 7. e3 {[%clk 0:03:02]}  O-O {[%clk 0:02:54]} 8. Bd3 {[%clk 0:03:02]}  Nbd7 {[%clk 0:02:48]} 9. Ne2 {[%clk 0:03:02]}  h6 {[%clk 0:02:38]} 10. Bh4 {[%clk 0:03:02]}  Ne5 {[%clk 0:02:38]} 11. O-O {[%clk 0:03:02]}  Ng6 {[%clk 0:02:38]} 12. Bg3 {[%clk 0:03:01]}  Nh5 {[%clk 0:02:35]} 13. Qc2 {[%clk 0:02:59]}  Nxg3 {[%clk 0:02:30]} 14. Nxg3 {[%clk 0:02:53]}  Ne5 {[%clk 0:02:30]} 15. Bf5 {[%clk 0:02:50]}  c4 {[%clk 0:02:21]} 16. f4 {[%clk 0:02:41]}  Nd7 {[%clk 0:01:30]} 17. e4 {[%clk 0:02:18]}  Re8 {[%clk 0:01:20]} 18. Rae1 {[%clk 0:02:16]}  Nc5 {[%clk 0:01:09]} 19. e5 {[%clk 0:01:59]}  dxe5 {[%clk 0:01:06]} 20. fxe5 {[%clk 0:01:56]}  Bxc3 {[%clk 0:01:02]} 21. bxc3 {[%clk 0:01:55]}  Qxd5 {[%clk 0:01:01]} 22. Bh7+ {[%clk 0:01:18]}  Kh8 {[%clk 0:01:00]} 23. Rd1 {[%clk 0:01:00]}  Qxe5 {[%clk 0:00:48]} 24. Rxf7 {[%clk 0:00:58]}  Bg4 {[%clk 0:00:36]} 25. Rdf1 {[%clk 0:00:58]}  Nd3 {[%clk 0:00:29]} 26. Bxd3 {[%clk 0:00:57]}  Qe3+ {[%clk 0:00:29]} 27. Kh1 {[%clk 0:00:52]}  cxd3 {[%clk 0:00:30]} 28. Qa4 {[%clk 0:00:52]}  Be6 {[%clk 0:00:21]} 29. Rxb7 {[%clk 0:00:40]}  d2 {[%clk 0:00:16]} 30. Qh4 {[%clk 0:00:19]}  Rf8 {[%clk 0:00:12]} 31. Rbb1 {[%clk 0:00:19]}  Rad8 {[%clk 0:00:10]} 32. Rbd1 {[%clk 0:00:18]}  Qd3 {[%clk 0:00:07]} 33. Rxf8+ {[%clk 0:00:16]}  Rxf8 {[%clk 0:00:07]} 34. Qe7 {[%clk 0:00:17]}  Rf6 {[%clk 0:00:02]} 35. Qe8+ {[%clk 0:00:16]}  Kh7 {[%clk 0:00:02]} 36. Qa4 {[%clk 0:00:13]}  Rg6 {[%clk 0:00:02]} 37. Nf1 {[%clk 0:00:11]}  Bg4 {[%clk 0:00:02]} 38. Nxd2 {[%clk 0:00:09]}  Bxd1 {[%clk 0:00:02]} 39. Qxd1 {[%clk 0:00:09]}  Rd6 {[%clk 0:00:02]} 40. Qg4 {[%clk 0:00:09]}  Qxd2 {[%clk 0:00:02]} 41. Qf5+ {[%clk 0:00:09]}  Kg8 {[%clk 0:00:03]} 42. Qc8+ {[%clk 0:00:09]}  Rd8 {[%clk 0:00:03]} 43. Qe6+ {[%clk 0:00:09]}  Kh8 {[%clk 0:00:04]} 0-1


[Site "https://www.chess.com"]

[Event "Titled Tuesday Blitz February 15 Early 2022"]
[White "Kujawski, Adam"]
[Black "Bilan, Danila"]
[WhiteFideId "1100920"]
[BlackFideId "24161918"]
[WhiteElo "2053"]
[BlackElo "2164"]
[Result "1-0"]
[Round "02"]
[TimeControl "180+1"]
[Date "2022.02.15"]
[WhiteClock "0:00:09"]
[BlackClock "0:00:02"]

1. e4 {[%clk 0:03:00]}  c6 {[%clk 0:02:59]} 2. d4 {[%clk 0:03:00]}  d5 {[%clk 0:03:00]} 3. Nc3 {[%clk 0:03:00]}  dxe4 {[%clk 0:02:59]} 4. Nxe4 {[%clk 0:03:01]}  Bf5 {[%clk 0:02:58]} 5. Ng3 {[%clk 0:03:00]}  Bg6 {[%clk 0:02:58]} 6. h4 {[%clk 0:03:00]}  h6 {[%clk 0:02:58]} 7. Nf3 {[%clk 0:03:01]}  Nd7 {[%clk 0:02:58]} 8. h5 {[%clk 0:03:00]}  Bh7 {[%clk 0:02:58]} 9. Bd3 {[%clk 0:03:01]}  Bxd3 {[%clk 0:02:59]} 10. Qxd3 {[%clk 0:03:02]}  Qc7 {[%clk 0:02:59]} 11. Bd2 {[%clk 0:03:02]}  e6 {[%clk 0:02:59]} 12. O-O-O {[%clk 0:03:01]}  Bd6 {[%clk 0:02:59]} 13. Ne4 {[%clk 0:03:00]}  Ngf6 {[%clk 0:03:00]} 14. Nxd6+ {[%clk 0:02:46]}  Qxd6 {[%clk 0:03:01]} 15. g3 {[%clk 0:02:46]}  Qd5 {[%clk 0:02:56]} 16. c4 {[%clk 0:02:27]}  Qe4 {[%clk 0:02:55]} 17. Qxe4 {[%clk 0:02:26]}  Nxe4 {[%clk 0:02:55]} 18. Be3 {[%clk 0:02:08]}  O-O {[%clk 0:02:53]} 19. Nd2 {[%clk 0:02:03]}  Nxd2 {[%clk 0:02:48]} 20. Rxd2 {[%clk 0:02:03]}  b5 {[%clk 0:02:49]} 21. cxb5 {[%clk 0:01:17]}  cxb5 {[%clk 0:02:49]} 22. d5 {[%clk 0:01:17]}  Nf6 {[%clk 0:02:23]} 23. dxe6 {[%clk 0:01:12]}  fxe6 {[%clk 0:02:20]} 24. Rd6 {[%clk 0:00:49]}  Kf7 {[%clk 0:02:16]} 25. Ra6 {[%clk 0:00:32]}  Rfc8+ {[%clk 0:02:12]} 26. Kb1 {[%clk 0:00:29]}  Rc7 {[%clk 0:02:08]} 27. Rc1 {[%clk 0:00:22]}  Rd7 {[%clk 0:01:27]} 28. Rc5 {[%clk 0:00:22]}  b4 {[%clk 0:01:07]} 29. Rca5 {[%clk 0:00:22]}  Rc8 {[%clk 0:00:53]} 30. Rxa7 {[%clk 0:00:20]}  Ke7 {[%clk 0:00:37]} 31. Rxd7+ {[%clk 0:00:20]}  Nxd7 {[%clk 0:00:34]} 32. Rb5 {[%clk 0:00:18]}  Rc4 {[%clk 0:00:32]} 33. b3 {[%clk 0:00:17]}  Rg4 {[%clk 0:00:27]} 34. Bc5+ {[%clk 0:00:17]}  Kf7 {[%clk 0:00:17]} 35. Bxb4 {[%clk 0:00:16]}  Re4 {[%clk 0:00:12]} 36. Bc3 {[%clk 0:00:14]}  e5 {[%clk 0:00:10]} 37. Rb7 {[%clk 0:00:13]}  Ke6 {[%clk 0:00:10]} 38. a4 {[%clk 0:00:13]}  Re2 {[%clk 0:00:10]} 39. a5 {[%clk 0:00:12]}  Nc5 {[%clk 0:00:08]} 40. a6 {[%clk 0:00:10]}  Kd5 {[%clk 0:00:02]} 41. a7 {[%clk 0:00:09]} 1-0


[Site "https://www.chess.com"]

[Event "Titled Tuesday Blitz February 15 Early 2022"]
[White "Kuzmin, Roman"]
[Black "Goldin, Roman"]
[WhiteFideId "44134932"]
[BlackFideId "2803860"]
[WhiteElo "1978"]
[BlackElo "2312"]
[Result "1-0"]
[Round "02"]
[TimeControl "180+1"]
[Date "2022.02.15"]
[WhiteClock "0:00:33"]
[BlackClock "0:00:02"]

1. e4 {[%clk 0:03:00]}  Nc6 {[%clk 0:02:59]} 2. d4 {[%clk 0:03:00]}  e5 {[%clk 0:02:58]} 3. Nf3 {[%clk 0:02:58]}  exd4 {[%clk 0:02:58]} 4. Nxd4 {[%clk 0:02:59]}  g6 {[%clk 0:02:58]} 5. Nc3 {[%clk 0:02:53]}  Bg7 {[%clk 0:02:57]} 6. Be3 {[%clk 0:02:53]}  Nf6 {[%clk 0:02:56]} 7. f3 {[%clk 0:02:52]}  O-O {[%clk 0:02:55]} 8. Bc4 {[%clk 0:02:47]}  Re8 {[%clk 0:02:54]} 9. O-O {[%clk 0:02:45]}  d5 {[%clk 0:02:46]} 10. Bxd5 {[%clk 0:02:29]}  Nxd5 {[%clk 0:02:39]} 11. Nxd5 {[%clk 0:02:25]}  Nxd4 {[%clk 0:02:39]} 12. Bxd4 {[%clk 0:02:26]}  Bxd4+ {[%clk 0:02:39]} 13. Qxd4 {[%clk 0:02:27]}  Re6 {[%clk 0:01:52]} 14. e5 {[%clk 0:01:41]}  Kg7 {[%clk 0:01:48]} 15. Rad1 {[%clk 0:01:41]}  c6 {[%clk 0:01:46]} 16. Nf4 {[%clk 0:01:41]}  Qxd4+ {[%clk 0:01:42]} 17. Rxd4 {[%clk 0:01:39]}  Rxe5 {[%clk 0:01:41]} 18. Rd8 {[%clk 0:01:36]}  b6 {[%clk 0:01:39]} 19. Rfd1 {[%clk 0:01:33]}  Bb7 {[%clk 0:01:20]} 20. R8d7 {[%clk 0:01:25]}  Bc8 {[%clk 0:01:02]} 21. Rc7 {[%clk 0:01:23]}  Bf5 {[%clk 0:01:00]} 22. Rxc6 {[%clk 0:01:19]}  Rae8 {[%clk 0:00:56]} 23. g4 {[%clk 0:01:09]}  Be6 {[%clk 0:00:40]} 24. Kf2 {[%clk 0:00:58]}  Bxa2 {[%clk 0:00:36]} 25. b3 {[%clk 0:00:54]}  Ra5 {[%clk 0:00:26]} 26. Ra1 {[%clk 0:00:52]}  Ree5 {[%clk 0:00:11]} 27. Nd3 {[%clk 0:00:52]}  Red5 {[%clk 0:00:08]} 28. Nb4 {[%clk 0:00:43]}  Rd2+ {[%clk 0:00:08]} 29. Ke3 {[%clk 0:00:44]}  Rxh2 {[%clk 0:00:07]} 30. Rxa2 {[%clk 0:00:43]}  Re5+ {[%clk 0:00:06]} 31. Kf4 {[%clk 0:00:43]}  f6 {[%clk 0:00:05]} 32. Rxa7+ {[%clk 0:00:35]}  Kh6 {[%clk 0:00:04]} 33. Rxf6 {[%clk 0:00:35]}  Rhe2 {[%clk 0:00:03]} 34. Rff7 {[%clk 0:00:33]}  g5+ {[%clk 0:00:02]} 35. Kg3 {[%clk 0:00:33]} 1-0


[Site "https://www.chess.com"]